bitfinex-derivatives/quotes_ETHF0:USTF0_20260209
["timestamp","ask_amount","ask_price","bid_price","bid_amount"]
[1770635608970,9.6343737,2028.5,2028.0,8.27937497]
[1770635611371,53.75598045,2028.7,2028.0,8.27937497]
[1770635611573,13.96211344,2028.6,2028.0,8.27937497]
[1770635611771,4.32773974,2028.5,2028.0,8.27937497]
[1770635611982,9.6343737,2028.6,2028.4,1.79097621]
[1770635612181,4.32639232,2028.5,2028.4,1.79097621]
[1770635612380,4.32639232,2028.5,2028.1,7.90878777]
[1770635612579,9.6343737,2028.6,2028.1,7.90878777]
[1770635613578,12.57959083,2029.3,2028.5,8.1490149]
[1770635613785,9.6343737,2029.2,2028.6,0.24671]
[1770635614376,9.6343737,2029.2,2028.6,8.3957249]
[1770635614584,9.63808153,2029.2,2028.6,8.3957249]
[1770635614781,9.63808153,2029.2,2028.6,0.24671]
[1770635614987,9.63808153,2029.2,2028.6,8.32239893]
[1770635615278,0.00370783,2029.2,2028.6,8.32239893]
[1770635617084,0.00370783,2029.2,2028.6,14.39146893]
[1770635617384,9.6343737,2029.4,2028.8,7.83709025]
[1770635618274,9.63831745,2029.4,2028.8,0.24669]
[1770635620879,9.63831745,2029.4,2028.8,7.68276125]
[1770635627289,0.00394375,2029.4,2029.1,8.81754117]
[1770635627491,8.83221328,2029.4,2029.1,8.82135163]
[1770635627689,8.58630473,2029.4,2029.1,0.00381046]
[1770635627891,8.08985473,2029.4,2029.2,0.24664]
[1770635628586,8.09452173,2029.4,2029.2,0.24664]
[1770635628786,0.004667,2029.4,2029.2,0.24664]
[1770635628988,0.004667,2029.4,2029.2,8.35726156]
[1770635630389,9.21070624,2029.9,2029.2,8.35726156]
[1770635630988,9.21070624,2029.9,2029.2,0.24664]
[1770635631190,9.21070624,2029.9,2029.2,8.31314501]
[1770635631490,9.21698832,2029.9,2029.2,8.31314501]
[1770635631692,0.00628208,2029.9,2029.2,8.31314501]
[1770635631995,9.21698832,2029.9,2029.5,8.03689568]
[1770635632394,0.00628208,2029.9,2029.6,0.24659]
[1770635632695,0.00628208,2029.9,2029.7,8.00607018]
[1770635634198,0.00628208,2029.9,2029.6,8.29923717]
[1770635635393,2.08e-06,2029.9,2029.6,8.29923717]
[1770635636399,9.21070832,2029.9,2029.6,8.29923717]
[1770635636697,9.21070832,2029.9,2029.6,0.24659]
[1770635636898,9.21070832,2029.9,2029.6,8.09734258]
[1770635639201,9.21070832,2029.9,2029.1,8.06762514]
[1770635640401,9.21070832,2029.9,2029.3,8.03318372]
[1770635640706,9.21070832,2029.9,2029.1,0.00381046]
[1770635640899,9.21070624,2029.7,2028.7,8.02706999]
[1770635641299,4.20392387,2029.6,2028.7,0.24669]
[1770635641495,9.21070624,2029.5,2028.7,0.24669]
[1770635641700,9.21070624,2029.5,2028.4,8.00043674]
[1770635641900,9.21070624,2029.3,2028.8,1.79097621]
[1770635642106,9.21070624,2029.3,2028.7,8.24712674]
[1770635642700,9.21070624,2029.6,2028.7,8.24712674]
[1770635642902,9.21070624,2029.6,2029.0,8.31836391]
[1770635643102,9.21070624,2029.6,2029.2,8.31836391]
[1770635644300,9.21070624,2029.6,2029.1,8.5341649]
[1770635645501,9.21070832,2029.9,2029.3,7.82386507]
[1770635648002,9.21070832,2029.9,2029.1,0.24665]
[1770635648307,9.21070832,2029.9,2029.2,6.30505591]
[1770635648608,9.21070832,2029.9,2029.1,8.0103891]
[1770635652308,9.21070832,2029.9,2029.1,0.24665]
[1770635653099,9.21070624,2029.7,2029.1,0.24665]
[1770635654897,9.21070624,2029.7,2028.8,7.49750318]
[1770635655103,9.21070624,2029.5,2028.8,7.49750318]
[1770635655303,9.21070624,2029.5,2029.0,7.46559718]
[1770635655697,9.21070624,2029.5,2028.9,0.24668]
[1770635655899,10.67470624,2029.5,2028.6,7.71207549]
[1770635657308,10.67470624,2029.5,2028.9,1.79097621]
[1770635657509,10.5820055,2029.5,2028.9,0.24668]
[1770635658209,10.5820055,2029.5,2028.9,7.98131587]
[1770635660814,10.5820055,2029.5,2028.3,33.53011]
[1770635660815,8.29070146,2028.9,2027.5,8.57784523]
[1770635661119,8.29070146,2028.2,2027.5,8.57784523]
[1770635661308,8.29070146,2028.1,2027.5,8.57784523]
[1770635661612,8.29452668,2028.1,2027.5,8.58236193]
[1770635664210,0.00382522,2028.1,2027.5,8.58236193]
[1770635664705,0.00382522,2028.1,2027.7,8.57784523]
[1770635667110,0.00382522,2028.1,2026.1,15.70827845]
[1770635667111,8.85839433,2027.8,2026.4,0.24698]
[1770635667312,8.85839433,2027.8,2025.1,8.57784523]
[1770635667313,2.91932013,2027.0,2025.1,8.57784523]
[1770635667509,8.61158433,2026.4,2025.6,8.57784523]
[1770635667710,40.8,2026.3,2025.6,8.57784523]
[1770635668108,8.61158433,2026.2,2025.6,0.31611035]
[1770635668509,8.61158433,2026.2,2025.6,8.89395558]
[1770635669916,8.61158433,2026.2,2025.6,0.00635596]
[1770635670711,8.61158433,2026.2,2025.1,8.57784523]
[1770635671518,8.61158433,2026.0,2025.1,8.57784523]
[1770635671709,8.61158433,2026.0,2025.1,8.58152537]
[1770635671912,8.61158433,2026.0,2025.6,1.79097621]
[1770635672212,8.61158433,2026.0,2025.4,0.30627439]
[1770635672416,8.61158433,2026.0,2025.3,8.57784523]
[1770635673314,8.61158433,2026.0,2024.6,8.57784523]
[1770635673621,8.61158433,2025.8,2024.8,8.57784523]
[1770635674519,8.61158433,2025.8,2024.8,8.5836943]
[1770635674818,8.61158433,2025.8,2024.8,0.00584907]
[1770635675716,8.61158433,2025.8,2024.6,0.30991427]
[1770635675916,8.61158433,2025.8,2024.4,8.57784523]
[1770635676517,8.85865433,2025.7,2024.4,8.88258663]
[1770635678027,8.61158433,2026.0,2024.6,8.57784523]
[1770635678818,8.61158433,2025.8,2024.4,0.3047414]
[1770635679125,8.61158433,2025.8,2024.4,8.88258663]
[1770635679316,8.61158433,2025.6,2024.4,8.88258663]
[1770635679717,8.61158433,2025.6,2024.4,0.3047414]
[1770635679918,8.61158433,2025.4,2024.4,0.3047414]
[1770635680119,8.61158433,2025.4,2024.4,0.00362353]
[1770635680326,8.61158433,2025.2,2024.4,0.00362353]
[1770635680721,8.61158433,2025.2,2024.0,10.65018079]
[1770635680921,8.61158433,2025.2,2022.0,2.91932013]
[1770635680922,8.1057376,2024.8,2023.4,8.57784523]
[1770635681122,8.99922013,2025.1,2023.2,8.57784523]
[1770635681123,8.61158433,2024.4,2023.2,8.57784523]
[1770635681725,8.61658768,2024.4,2023.2,8.58135416]
[1770635681921,8.61658768,2024.4,2023.4,8.57784523]
[1770635683723,8.61658768,2024.4,2023.2,8.88710144]
[1770635684215,8.61658768,2024.4,2023.2,0.30925621]
[1770635684415,8.61158433,2024.3,2023.2,0.30925621]
[1770635684628,8.61158433,2024.3,2023.2,0.00350893]
[1770635684822,8.61158433,2024.1,2023.2,0.00350893]
[1770635685225,8.61158433,2024.1,2023.1,0.30463205]
[1770635685419,8.61158433,2024.1,2022.8,8.57784523]
[1770635686222,8.85884433,2024.1,2022.8,0.30706879]
[1770635686629,9.45055606,2024.0,2022.8,0.30706879]
[1770635686931,7.65957985,2024.0,2022.8,0.00478339]
[1770635687331,9.45055606,2023.8,2022.8,0.00478339]
[1770635688926,9.45055606,2023.8,2022.8,9.12513947]
[1770635689725,9.45055606,2024.1,2023.0,9.12035608]
[1770635690128,9.45055606,2024.1,2023.2,9.12035608]
[1770635690724,9.45555941,2024.4,2023.2,9.12035608]
[1770635691031,9.45555941,2024.4,2023.4,9.12035608]
[1770635691229,9.45055606,2024.3,2023.4,9.12035608]
[1770635691433,9.45555941,2024.4,2023.4,9.12035608]
[1770635691829,50.25555941,2024.4,2023.4,9.12035608]
[1770635692037,9.45055606,2024.3,2023.4,9.12035608]
[1770635693532,9.45055606,2023.8,2022.4,9.12035608]
[1770635693729,9.45055606,2023.8,2022.5,9.12115608]
[1770635694532,9.45055606,2023.8,2022.5,0.00663617]
[1770635694923,9.45055606,2023.8,2022.5,9.12699225]
[1770635695526,9.45055606,2023.8,2022.7,9.12035608]
[1770635697337,40.8,2023.7,2022.5,9.12699225]
[1770635697625,9.45055606,2023.6,2022.5,0.00663617]
[1770635698222,9.45055606,2023.6,2022.5,9.12699225]
[1770635701027,47.17004509,2024.1,2022.5,9.12699225]
[1770635701028,9.45055606,2023.8,2022.7,9.12035608]
[1770635701232,9.45055606,2024.2,2023.1,9.12035608]
[1770635701526,9.45055606,2024.2,2023.3,9.12035608]
[1770635701728,9.45055606,2024.9,2023.7,9.12035608]
[1770635702035,9.45055606,2025.1,2023.9,9.12035608]
[1770635702333,9.45055606,2025.1,2024.1,9.12035608]
[1770635702640,9.45055606,2025.5,2024.3,9.12035608]
[1770635702933,0.00526838,2025.5,2024.5,9.12035608]
[1770635703336,0.00526838,2025.5,2024.7,9.12035608]
[1770635704138,9.45582444,2025.5,2024.7,9.12035608]
[1770635704527,9.45582444,2025.5,2024.4,9.12035608]
[1770635704734,9.45055606,2025.3,2024.4,9.12035608]
[1770635705429,9.45055606,2025.3,2024.3,0.00351112]
[1770635705637,9.45055606,2025.0,2023.8,9.12035608]
[1770635705833,9.45055606,2024.8,2023.8,9.12035608]
[1770635706034,9.45055606,2024.6,2023.8,9.12035608]
[1770635706431,9.45055606,2024.6,2023.6,9.12035608]
[1770635706736,9.45055606,2024.4,2023.6,0.00450771]
[1770635707434,4.52604591,2024.3,2023.6,0.00450771]
[1770635707635,9.45055606,2024.2,2023.6,0.00450771]
[1770635707834,9.45055606,2024.4,2023.6,9.12486379]
[1770635708733,40.8,2024.3,2023.6,9.12486379]
[1770635709337,9.45055606,2024.6,2023.6,9.12486379]
[1770635709537,4.52921245,2024.5,2023.6,9.12486379]
[1770635709739,40.8,2024.6,2023.6,9.12486379]
[1770635709939,12.38349128,2025.0,2023.8,9.12035608]
[1770635710140,9.45055606,2025.2,2023.9,9.36763608]
[1770635710340,9.45055606,2025.0,2024.0,9.12035608]
[1770635711032,9.45055606,2025.0,2023.6,0.00450771]
[1770635711239,9.45055606,2024.0,2022.9,9.12035608]
[1770635711442,9.45055606,2023.8,2022.9,9.12035608]
[1770635711745,13.98196561,2023.7,2022.9,9.12035608]
[1770635712042,9.45055606,2023.9,2022.9,9.12035608]
[1770635712242,9.45055606,2023.7,2022.9,9.12601005]
[1770635713241,13.9783904,2023.6,2022.9,9.12601005]
[1770635713447,9.45055606,2023.6,2022.9,9.12601005]
[1770635713641,4.52683492,2023.5,2022.9,9.12601005]
[1770635713845,9.45055606,2023.6,2022.9,9.12601005]
[1770635714046,4.52657572,2023.5,2022.9,9.12601005]
[1770635714244,9.45055606,2023.6,2022.9,0.00565397]
[1770635714443,9.45055606,2023.4,2022.5,9.12115608]
[1770635714643,9.45055606,2023.2,2022.5,9.12115608]
[1770635715547,9.45055606,2023.2,2022.5,9.1271137]
[1770635717739,9.5040747,2023.1,2022.5,0.00675762]
[1770635718548,40.8,2023.2,2022.5,9.35605651]
[1770635718747,9.28957505,2023.5,2022.5,9.35605651]
[1770635718942,9.28957505,2023.3,2022.5,9.35605651]
[1770635719137,9.28957505,2023.3,2022.5,0.00675762]
[1770635719343,9.28957505,2023.1,2022.5,0.00675762]
[1770635719544,9.28957505,2023.1,2022.3,9.34929889]
[1770635720548,9.28957505,2023.1,2022.3,9.35403239]
[1770635720747,40.8,2023.2,2022.3,9.35403239]
[1770635721150,50.08957505,2023.2,2022.3,9.35403239]
[1770635721353,9.28957505,2023.1,2022.3,9.35403239]
[1770635722551,9.28957505,2023.1,2022.3,0.0047335]
[1770635722948,9.28957505,2023.1,2022.1,9.34929889]
[1770635723348,9.28957505,2023.1,2022.2,9.34929889]
[1770635723952,9.28957505,2023.1,2022.2,9.35514155]
[1770635725154,40.8,2023.0,2022.2,9.35514155]
[1770635725944,9.28957505,2023.3,2022.2,9.35514155]
[1770635726347,9.28957505,2023.3,2022.2,9.60262155]
[1770635726546,9.28957505,2023.5,2022.4,9.34929889]
[1770635727151,9.28957505,2023.3,2022.4,9.34929889]
[1770635727655,9.28957505,2023.2,2022.4,9.34929889]
[1770635728158,9.28957505,2023.2,2022.2,0.25332266]
[1770635728159,9.28957505,2023.2,2022.2,9.35514155]
[1770635729747,9.28957505,2023.2,2021.6,9.34929889]
[1770635729956,9.28957505,2023.2,2020.9,10.363]
[1770635729957,9.28957505,2022.3,2021.4,8.63929889]
[1770635730155,9.28957505,2022.1,2021.4,7.65529772]
[1770635730362,41.26057505,2022.1,2021.4,7.65529772]
[1770635730654,41.26057505,2022.6,2021.6,9.34929889]
[1770635730847,41.26747212,2022.6,2021.6,9.35438476]
[1770635731051,9.29547212,2022.6,2021.6,9.35438476]
[1770635731254,9.28957505,2022.5,2021.6,9.35438476]
[1770635732560,9.28957505,2022.4,2021.6,9.35438476]
[1770635733958,9.28957505,2022.4,2021.6,0.00508587]
[1770635734857,9.28957505,2022.2,2021.6,0.00508587]
[1770635735062,9.28957505,2022.2,2021.6,9.35438476]
[1770635735671,9.28957505,2022.2,2021.6,0.00508587]
[1770635736474,9.28957505,2022.2,2021.6,9.35438476]
[1770635736773,9.28957505,2022.2,2021.6,0.00508587]
[1770635738065,9.28957505,2022.2,2021.6,9.35438476]
[1770635738270,9.29547212,2022.6,2021.6,9.35438476]
[1770635738471,0.00589707,2022.6,2021.8,9.34929889]
[1770635738770,9.29547212,2022.6,2021.8,9.34929889]
[1770635739968,0.00589707,2022.6,2021.8,9.34929889]
[1770635740476,9.29547212,2022.6,2021.8,9.34929889]
[1770635741274,2.93293522,2023.0,2021.9,6.53938418]
[1770635741478,9.28957505,2023.1,2022.0,9.34929889]
[1770635741778,9.28957505,2022.8,2021.7,9.34929889]
[1770635742078,9.28957505,2022.6,2021.7,9.34929889]
[1770635742375,9.29439772,2022.6,2021.7,9.34929889]
[1770635742679,13.8372741,2022.5,2021.7,9.34929889]
[1770635742873,9.28957505,2022.5,2021.7,9.34929889]
[1770635743976,0.00482267,2022.6,2021.9,9.34929889]
[1770635744276,0.00482267,2022.6,2022.1,9.34929889]
[1770635744471,9.28957505,2022.9,2022.1,9.34929889]
[1770635744472,2.93293522,2022.9,2022.1,9.34929889]
[1770635744673,4.54993399,2022.8,2022.1,9.34929889]
[1770635744877,2.93293522,2023.0,2022.2,6.41529816]
[1770635745083,9.28957505,2022.8,2022.2,15.76459705]
[1770635745382,0.00419383,2022.8,2022.2,9.34929889]
[1770635745778,8.8050943,2022.6,2022.2,9.34929889]
[1770635747080,8.8050943,2022.6,2021.9,9.17695809]
[1770635749182,8.8050943,2022.6,2021.6,9.18204396]
[1770635749183,8.8050943,2022.4,2021.6,9.18204396]
[1770635749383,2.93293522,2022.5,2021.6,9.18204396]
[1770635749572,4.51524308,2022.4,2021.6,9.18204396]
[1770635749780,11.73802952,2022.6,2021.6,9.18204396]
[1770635749973,4.51527929,2022.5,2021.6,9.18204396]
[1770635750178,4.51527929,2022.4,2021.6,9.18204396]
[1770635750378,8.8050943,2022.5,2021.6,9.18204396]
[1770635750578,13.32099174,2022.4,2021.6,9.18204396]
[1770635750779,8.8050943,2022.4,2021.6,9.18204396]
[1770635752183,4.51660274,2022.3,2021.6,9.18204396]
[1770635752479,4.51660274,2022.2,2021.6,9.18204396]
[1770635752678,11.73802952,2022.4,2021.6,9.18204396]
[1770635752878,4.51812334,2022.3,2021.6,9.18204396]
[1770635753074,4.51812334,2022.2,2021.6,9.18204396]
[1770635754186,13.32321764,2022.2,2021.6,9.18204396]
[1770635754385,8.8050943,2022.2,2021.6,9.18204396]
[1770635755381,11.73802952,2022.4,2021.6,9.18204396]
[1770635755584,4.519931,2022.3,2021.6,9.18204396]
[1770635755783,8.8050943,2022.4,2021.6,9.18204396]
[1770635755985,4.51961802,2022.3,2021.6,9.18204396]
[1770635756187,4.51961802,2022.2,2021.6,9.18204396]
[1770635756384,11.73802952,2022.4,2021.6,9.18204396]
[1770635756582,4.52000775,2022.3,2021.6,9.18204396]
[1770635756784,4.52000775,2022.2,2021.6,9.18204396]
[1770635756987,8.8050943,2022.3,2021.6,9.18204396]
[1770635757286,4.5221209,2022.2,2021.6,9.18204396]
[1770635757487,8.8050943,2022.3,2021.6,9.18204396]
[1770635757686,4.52225649,2022.2,2021.6,9.18204396]
[1770635757886,8.8050943,2022.3,2021.6,9.18204396]
[1770635758088,4.52237342,2022.2,2021.6,9.18204396]
[1770635758289,8.8050943,2022.3,2021.6,9.18204396]
[1770635758491,4.52376609,2022.2,2021.6,9.18204396]
[1770635758692,8.8050943,2022.3,2021.6,9.18204396]
[1770635758991,4.52689844,2022.2,2021.6,9.18204396]
[1770635759184,2.93293522,2022.3,2021.6,9.18204396]
[1770635759384,4.52892805,2022.2,2021.6,9.18204396]
[1770635759583,2.93293522,2022.3,2021.6,9.18204396]
[1770635759786,4.52891629,2022.2,2021.6,9.18204396]
[1770635759987,11.73802952,2022.4,2021.6,9.18204396]
[1770635760281,8.8050943,2021.8,2021.1,9.17695809]
[1770635760487,8.8050943,2021.4,2020.4,9.17695809]
[1770635760683,4.5294961,2021.3,2020.4,9.17695809]
[1770635760883,11.73802952,2021.4,2020.5,6.4913371]
[1770635760884,4.5294961,2021.2,2020.5,6.4913371]
[1770635761082,11.73802952,2021.4,2020.6,9.17695809]
[1770635761291,0.00622972,2021.4,2020.8,9.17695809]
[1770635761491,8.8050943,2021.8,2020.8,9.17695809]
[1770635761693,8.8050943,2021.8,2020.9,6.55838087]
[1770635761892,43.73293522,2021.9,2021.2,9.17695809]
[1770635762087,40.8,2021.9,2021.2,9.17695809]
[1770635762294,8.8050943,2021.8,2021.2,9.17695809]
[1770635762486,0.00470242,2021.8,2021.2,9.17695809]
[1770635763292,8.80979672,2021.8,2021.2,9.17695809]
[1770635763591,0.00470242,2021.8,2021.2,9.17695809]
[1770635763791,0.00470242,2021.8,2021.4,9.17695809]
[1770635763991,8.80979672,2021.8,2021.4,9.17695809]
[1770635764190,8.80979672,2021.8,2021.2,9.17695809]
[1770635767093,8.80979672,2021.8,2021.1,0.24763]
[1770635767593,8.80979672,2021.8,2021.1,9.42458809]
[1770635768187,8.80979672,2021.8,2021.1,9.17695809]
[1770635769499,8.8050943,2022.2,2021.3,9.17695809]
[1770635770501,0.00575977,2022.2,2021.5,9.17695809]
[1770635770695,8.8050943,2022.4,2021.7,9.17695809]
[1770635771798,8.81081095,2022.4,2021.7,9.17695809]
[1770635772200,0.00571665,2022.4,2021.7,9.17695809]
[1770635772499,8.81081095,2022.4,2021.7,9.17695809]
[1770635774307,0.00571665,2022.4,2021.7,9.17695809]
[1770635774607,8.8050943,2022.8,2021.9,9.17695809]
[1770635774805,13.25511467,2022.7,2021.9,9.17695809]
[1770635774994,8.8050943,2022.7,2022.1,9.17695809]
[1770635775503,8.81135881,2022.7,2022.1,9.18139497]
[1770635777204,0.00626451,2022.7,2022.1,9.18139497]
[1770635779101,8.75911973,2022.7,2022.1,9.18139497]
[1770635779496,0.00626451,2022.7,2022.1,9.18139497]
[1770635780000,8.75285522,2023.1,2022.3,8.79058477]
[1770635780200,8.75285522,2023.3,2022.5,8.79058477]
[1770635780395,4.44756501,2023.2,2022.5,8.79058477]
[1770635780595,8.75285522,2023.3,2022.5,8.79058477]
[1770635781005,8.75716242,2023.3,2022.5,8.79058477]
[1770635786104,8.75285522,2023.5,2022.7,8.79058477]
[1770635786604,8.75285522,2023.5,2022.8,0.24742]
[1770635786905,8.75285522,2023.7,2022.9,8.79058477]
[1770635787102,0.00364529,2023.7,2023.1,8.79058477]
[1770635787302,8.75285522,2024.0,2023.3,8.79058477]
[1770635787609,8.75285522,2024.0,2023.3,9.17447369]
[1770635788004,8.75285522,2024.0,2023.3,0.38388892]
[1770635788205,8.75765509,2024.0,2023.2,9.03795477]
[1770635789708,0.00479987,2024.0,2023.2,9.03795477]
[1770635789914,8.75765509,2024.0,2023.2,9.03795477]
[1770635790509,0.00479987,2024.0,2023.2,9.03795477]
[1770635790715,8.75765509,2024.0,2023.2,9.03795477]
[1770635790910,8.75765509,2024.0,2023.4,8.79058477]
[1770635791212,0.00479987,2024.0,2023.4,8.79058477]
[1770635791514,7.78331372,2024.2,2023.6,8.79058477]
[1770635792013,49.55285522,2024.4,2023.6,8.79058477]
[1770635792213,8.75285522,2024.3,2023.6,8.79058477]
[1770635792409,0.00571621,2024.3,2023.6,9.04210753]
[1770635792610,0.00571621,2024.3,2023.8,8.79058477]
[1770635792919,8.75285522,2024.7,2024.0,8.79058477]
[1770635793511,49.55285522,2024.9,2024.0,8.79058477]
[1770635793714,8.75285522,2024.8,2024.0,8.79058477]
[1770635795515,8.75729151,2024.9,2024.0,8.79058477]
[1770635795717,8.75729151,2024.9,2024.2,8.79058477]
[1770635796016,8.75729151,2024.9,2024.1,8.79058477]
[1770635796817,0.00443629,2024.9,2024.3,8.79058477]
[1770635798418,0.00443629,2024.9,2024.5,8.79058477]
[1770635799607,8.75285522,2025.4,2024.5,8.79058477]
[1770635800106,8.75285522,2025.4,2024.6,6.36778352]
[1770635800415,8.75285522,2025.4,2024.7,8.79058477]
[1770635800607,8.75769948,2025.4,2024.7,8.79058477]
[1770635800809,8.75769948,2025.4,2024.5,8.79058477]
[1770635801313,0.00484426,2025.4,2024.7,8.79058477]
[1770635801512,8.75769948,2025.4,2024.7,8.79058477]
[1770635801909,8.75769948,2025.4,2024.5,8.79058477]
[1770635803511,8.75769948,2025.4,2024.6,6.4133865]
[1770635803713,8.75769948,2025.4,2024.7,8.79058477]
[1770635809518,8.75769948,2025.4,2024.2,0.24725]
[1770635809722,8.75769948,2025.4,2024.3,8.07193539]
[1770635810118,8.51325138,2025.2,2024.3,8.07193539]
[1770635810327,8.51325138,2025.2,2024.2,0.24725]
[1770635810719,8.51325138,2025.2,2024.2,8.31918539]
[1770635811321,9.97725138,2025.2,2023.8,8.07193539]
[1770635811527,8.51325138,2025.0,2023.8,8.07193539]
[1770635811725,8.51325138,2024.8,2023.9,8.07193539]
[1770635813624,8.51325138,2024.6,2023.7,8.31923539]
[1770635817125,12.95653998,2024.5,2023.7,8.31923539]
[1770635817331,8.51325138,2024.5,2023.7,8.31923539]
[1770635820132,4.44924537,2024.4,2023.7,8.31923539]
[1770635820431,8.51325138,2024.2,2023.5,8.07193539]
[1770635820731,8.51325138,2024.6,2023.9,8.07193539]
[1770635820932,4.44716403,2024.5,2023.9,8.07193539]
[1770635821137,11.4461866,2024.7,2023.9,8.07193539]
[1770635821445,5.90009666,2024.9,2023.8,0.2473]
[1770635821446,8.51325138,2025.1,2024.1,8.07193539]
[1770635821732,14.41334804,2024.2,2023.2,8.07193539]
[1770635822029,7.36239623,2024.4,2023.3,8.07193539]
[1770635822030,8.51325138,2024.1,2023.3,8.07193539]
[1770635822935,8.51325138,2024.1,2023.3,8.07540308]
[1770635823229,8.51325138,2024.1,2023.3,0.00346769]
[1770635823430,8.51325138,2024.1,2022.8,8.07193539]
[1770635823631,8.51325138,2024.0,2022.8,8.07193539]
[1770635824134,8.51325138,2023.9,2022.8,8.07193539]
[1770635824334,8.51325138,2023.9,2022.6,8.07193539]
[1770635824529,8.51845969,2023.9,2022.6,8.0757745]
[1770635824733,8.51325138,2023.7,2022.6,0.00383911]
[1770635826935,8.51325138,2023.5,2022.6,0.00383911]
[1770635827138,8.51325138,2023.5,2022.6,8.0757745]
[1770635828434,8.51325138,2023.5,2022.6,0.00383911]
[1770635832234,8.51325138,2023.5,2022.6,8.0757745]
[1770635832532,8.51325138,2023.3,2022.6,8.0757745]
[1770635833133,8.51325138,2023.3,2022.6,0.00383911]
[1770635835132,8.41511693,2022.7,2021.5,8.82852669]
[1770635835335,8.41511693,2022.7,2021.7,8.82852669]
[1770635835638,8.41511693,2023.1,2022.1,8.82852669]
[1770635835838,8.41511693,2023.0,2022.1,8.82852669]
[1770635836241,8.41511693,2023.0,2022.1,8.83470236]
[1770635841354,8.41511693,2023.0,2022.1,8.32002102]
[1770635843152,8.8235203,2023.3,2022.1,8.32002102]
[1770635843562,8.8235203,2023.0,2021.6,8.31384535]
[1770635843761,8.8235203,2022.8,2021.6,8.31384535]
[1770635844556,8.8235203,2022.8,2021.6,8.31797095]
[1770635845257,8.8235203,2022.6,2021.6,8.31797095]
[1770635845659,8.8235203,2022.4,2021.6,0.0041256]
[1770635845860,8.82901763,2022.4,2021.6,0.0041256]
[1770635849269,8.8235203,2022.2,2021.6,8.31797095]
[1770635849470,8.82901763,2022.4,2021.6,8.31797095]
[1770635850469,8.82901763,2022.4,2021.6,0.0041256]
[1770635850878,8.8235203,2022.2,2021.6,0.0041256]
[1770635852169,8.8235203,2022.2,2021.5,0.376387]
[1770635852365,8.8235203,2022.2,2021.2,8.31384535]
[1770635852566,8.8235203,2022.0,2021.2,8.31384535]
[1770635853278,8.8235203,2022.0,2021.2,8.31932915]
[1770635853477,8.8235203,2022.3,2021.2,8.31932915]
[1770635853678,13.13037913,2022.2,2021.2,8.31932915]
[1770635853878,4.30685883,2022.1,2021.2,8.31932915]
[1770635854078,13.13037913,2022.1,2021.2,8.31932915]
[1770635854380,8.8235203,2022.1,2021.2,8.31932915]
[1770635855183,44.21886993,2022.4,2021.4,8.31384535]
[1770635855184,0.00549733,2022.4,2021.4,8.31384535]
[1770635855378,0.00549733,2022.4,2021.5,8.31384535]
[1770635856578,0.00549733,2022.4,2021.6,8.31384535]
[1770635857478,0.00549733,2022.4,2021.7,0.24755]
[1770635857679,0.00549733,2022.4,2021.8,8.31384535]
[1770635858076,13.7735203,2024.0,2022.9,6.08627]
[1770635858277,8.8235203,2024.3,2023.6,0.51366278]
[1770635858971,8.82732603,2024.3,2023.6,0.51779882]
[1770635859777,8.8235203,2024.2,2023.6,0.51779882]
[1770635860170,8.8235203,2023.8,2023.6,0.00413604]
[1770635860370,8.8235203,2023.8,2023.0,29.60142441]
[1770635860675,8.8235203,2023.8,2023.1,2.38830577]
[1770635861383,8.8235203,2023.8,2023.1,2.39196168]
[1770635862186,8.8235203,2023.7,2023.1,0.00365591]
[1770635862781,8.8235203,2023.4,2023.1,0.00365591]
[1770635863183,8.8235203,2024.2,2023.1,0.00365591]
[1770635863581,8.8235203,2023.8,2023.1,0.00365591]
[1770635865588,8.61194956,2023.5,2023.1,0.00365591]
[1770635866183,8.6074065,2024.5,2023.8,2.28211087]
[1770635867185,8.61352569,2024.5,2023.8,2.28211087]
[1770635868582,8.61352569,2024.5,2023.8,8.36573087]
[1770635868779,8.61352569,2024.5,2024.0,1.83869906]
[1770635868983,0.00611919,2024.5,2024.0,1.83869906]
[1770635869389,0.00611919,2024.5,2024.2,0.24725]
[1770635869988,0.00611919,2024.5,2024.2,1.79322016]
[1770635870289,0.00611919,2024.5,2024.2,2.15427908]
[1770635871589,9.19e-06,2024.5,2024.4,0.24722]
[1770635871988,8.61194956,2025.1,2024.4,1.57347442]
[1770635872186,8.61194956,2025.2,2024.8,0.24717]
[1770635872586,20.83900652,2025.1,2024.8,0.24717]
[1770635872790,8.61194956,2025.1,2024.8,0.24717]
[1770635873189,20.83900652,2025.0,2024.8,0.25284982]
[1770635875293,8.61194956,2025.6,2025.0,0.24715]
[1770635875795,9.02350179,2025.5,2025.0,0.24715]
[1770635876093,9.01710457,2025.5,2025.0,0.24715]
[1770635876293,9.02060431,2025.5,2025.0,6.32713]
[1770635876489,9.02060431,2025.5,2025.0,7.09665809]
[1770635876889,9.02700153,2025.5,2025.2,0.24713]
[1770635878102,0.00989696,2025.5,2025.2,0.24713]
[1770635878998,0.00349974,2025.5,2025.2,1.0562486]
[1770635879191,0.00349974,2025.5,2025.2,7.1355886]
[1770635880095,0.00349974,2025.5,2025.2,1.0562486]
[1770635880493,8.95464028,2026.0,2025.4,0.2471]
[1770635880798,8.95464028,2026.0,2025.6,0.24708]
[1770635880999,8.95525251,2025.9,2025.6,0.24708]
[1770635881200,8.94885529,2025.9,2024.6,0.97524419]
[1770635881400,8.95497161,2025.9,2024.6,0.97524419]
[1770635881595,8.82578969,2025.7,2024.8,0.93689472]
[1770635881797,8.82578969,2025.7,2025.1,1.1783549]
[1770635882101,8.83190601,2025.9,2025.3,1.1783249]
[1770635882402,8.83218691,2025.8,2025.3,0.24711]
[1770635882598,0.00611632,2025.9,2025.8,0.24705]
[1770635882803,8.61194956,2027.0,2025.8,0.24705]
[1770635883195,8.61194956,2026.8,2025.8,0.24705]
[1770635883800,8.61571458,2026.8,2025.8,0.24705]
[1770635885893,8.61571458,2026.8,2026.2,0.247]
[1770635886297,8.61571458,2026.8,2025.8,6.07754]
[1770635886500,8.61571458,2026.8,2026.2,6.32342]
[1770635886704,8.61571458,2026.8,2026.2,7.93322527]
[1770635887091,0.00376502,2026.8,2026.4,1.8770148]
[1770635887292,0.00376502,2026.8,2026.4,1.88237657]
[1770635887495,8.61571458,2026.8,2026.4,0.25234177]
[1770635887894,8.61571458,2026.8,2025.9,7.68121007]
[1770635888100,8.61571458,2026.8,2025.9,1.60393007]
[1770635888408,8.61571458,2026.8,2025.8,0.24704]
[1770635888905,8.61571458,2026.8,2025.8,0.25116863]
[1770635889900,8.61571458,2026.8,2025.8,2.05235744]
[1770635890205,8.61571458,2026.8,2026.0,2.04821881]
[1770635891805,8.61571458,2026.8,2026.0,0.24703]
[1770635892906,8.61571458,2026.8,2025.8,0.00412863]
[1770635893498,8.61571458,2026.8,2026.0,0.24703]
[1770635897002,8.61571458,2026.8,2026.0,1.53486699]
[1770635897402,8.61571458,2026.8,2026.0,7.61186699]
[1770635897603,8.61571458,2026.8,2026.4,0.24698]
[1770635897806,0.00376502,2026.8,2026.4,1.49313202]
[1770635898003,8.36551876,2027.0,2026.4,1.49313202]
[1770635899001,8.37006567,2027.0,2026.4,1.49313202]